bitfinex-derivatives/quotes_BTCF0:USTF0_20260127
["timestamp","ask_amount","ask_price","bid_price","bid_amount"]
[1769548581805,0.00929856,89451.0,89437.0,0.011193]
[1769548582108,0.01188694,89450.0,89437.0,0.011193]
[1769548582313,0.00258838,89450.0,89440.0,0.011193]
[1769548582706,0.00258838,89450.0,89437.0,0.00993335]
[1769548582908,0.00929856,89456.0,89441.0,0.002588]
[1769548583104,0.0008632,89455.0,89444.0,0.011192]
[1769548583307,0.01016176,89455.0,89445.0,0.002588]
[1769548584714,0.0008632,89455.0,89445.0,0.002588]
[1769548585108,0.00992012,89455.0,89445.0,0.002588]
[1769548585414,0.00992012,89455.0,89445.0,0.01378]
[1769548585609,0.10072,89464.0,89445.0,0.002588]
[1769548585815,0.00992012,89463.0,89445.0,0.002588]
[1769548587017,0.00992012,89463.0,89448.0,0.011192]
[1769548587218,0.00992012,89463.0,89449.0,0.002588]
[1769548588311,0.00905692,89462.0,89449.0,0.002588]
[1769548588607,0.00905692,89460.0,89449.0,0.002588]
[1769548588807,0.00905692,89458.0,89449.0,0.002588]
[1769548589002,0.0008632,89457.0,89449.0,0.002588]
[1769548590817,0.00992012,89457.0,89449.0,0.002588]
[1769548591018,0.00992012,89457.0,89443.0,0.011193]
[1769548591217,0.00992012,89457.0,89444.0,0.002588]
[1769548593325,0.00905692,89456.0,89430.0,0.06966661]
[1769548593623,0.00905692,89454.0,89436.0,0.013781]
[1769548593825,0.00905692,89452.0,89438.0,0.011193]
[1769548594132,0.00905692,89450.0,89439.0,0.002588]
[1769548594311,0.00905692,89448.0,89439.0,0.002588]
[1769548594512,0.00992012,89448.0,89439.0,0.002588]
[1769548595920,0.00992012,89448.0,89440.0,0.011193]
[1769548596118,0.00992012,89448.0,89440.0,0.002588]
[1769548597424,0.0008632,89448.0,89441.0,0.011193]
[1769548597625,0.00992012,89448.0,89442.0,0.002588]
[1769548598124,0.0008632,89448.0,89442.0,0.002588]
[1769548598528,0.00992012,89448.0,89442.0,0.013781]
[1769548599227,0.00992012,89448.0,89442.0,0.002588]
[1769548600626,0.00905692,89448.0,89442.0,0.002588]
[1769548600826,0.011189,89476.0,89442.0,0.002588]
[1769548600827,0.0062002,89457.0,89443.0,0.00966661]
[1769548601125,0.10072,89456.0,89444.0,0.01225461]
[1769548601420,0.10072,89456.0,89445.0,0.00966661]
[1769548601625,0.10072,89456.0,89447.0,0.00966661]
[1769548601816,0.10072,89456.0,89448.0,0.002588]
[1769548602220,0.10072,89457.0,89449.0,0.011192]
[1769548602425,0.10072,89457.0,89450.0,0.002588]
[1769548602917,0.10977692,89457.0,89450.0,0.002588]
[1769548603112,0.00992012,89456.0,89450.0,0.002588]
[1769548603713,0.00905692,89456.0,89450.0,0.002588]
[1769548605922,0.00992012,89456.0,89450.0,0.002588]
[1769548607624,0.00992012,89456.0,89443.0,0.011193]
[1769548607821,0.00992012,89456.0,89444.0,0.002588]
[1769548608021,0.00992012,89456.0,89445.0,0.011192]
[1769548608220,0.00992012,89456.0,89447.0,0.011192]
[1769548608422,0.00992012,89456.0,89448.0,0.002588]
[1769548610626,0.00905692,89456.0,89448.0,0.01378]
[1769548611018,0.00905692,89456.0,89448.0,0.002588]
[1769548611526,0.00992012,89456.0,89448.0,0.002588]
[1769548613830,0.00905692,89456.0,89448.0,0.002588]
[1769548614032,0.00905692,89454.0,89448.0,0.002588]
[1769548614632,0.00905692,89454.0,89448.0,0.01378]
[1769548615628,0.00905692,89454.0,89450.0,0.011192]
[1769548615934,0.00905692,89454.0,89451.0,0.002588]
[1769548616733,0.10072,89457.0,82000.0,0.001]
[1769548616734,0.00944812,89451.0,89435.0,0.011194]
[1769548616924,0.00944812,89449.0,89435.0,0.011194]
[1769548617125,0.0120365,89448.0,89435.0,0.011194]
[1769548617833,0.00944812,89447.0,89441.0,0.011193]
[1769548618033,0.00944812,89446.0,89441.0,0.011193]
[1769548619537,0.00944812,89445.0,89430.0,0.06]
[1769548619839,0.10330838,89446.0,89421.0,0.011195]
[1769548619840,0.00944812,89437.0,89421.0,0.011195]
[1769548620037,0.00944812,89435.0,89420.0,0.27544796]
[1769548620237,0.00944812,89435.0,89418.0,0.39719032]
[1769548620437,0.00944812,89433.0,89420.0,0.011195]
[1769548620639,0.00258838,89432.0,89418.0,0.27544796]
[1769548620831,0.11395287,89430.0,89417.0,0.11635253]
[1769548621032,0.11395287,89427.0,89402.0,0.00999999]
[1769548621337,0.11395287,89420.0,89402.0,0.02119799]
[1769548621534,0.11395287,89420.0,89392.0,0.10072]
[1769548621535,0.10330838,89419.0,89396.0,0.00999999]
[1769548621737,0.00010824,89418.0,89396.0,0.00999999]
[1769548621936,0.00010824,89416.0,89403.0,0.01132338]
[1769548622142,0.10072,89419.0,89403.0,0.01132338]
[1769548622143,0.00010824,89414.0,89403.0,0.01132338]
[1769548622344,0.00258838,89413.0,89403.0,0.01132338]
[1769548622540,0.00258838,89413.0,89406.0,0.011197]
[1769548623836,0.00258838,89413.0,89405.0,0.011197]
[1769548624034,0.00258838,89413.0,89381.0,0.00998543]
[1769548624035,4.368e-05,89407.0,89381.0,0.00998543]
[1769548624235,4.368e-05,89407.0,89369.0,0.011202]
[1769548624236,0.11395287,89400.0,89380.0,0.011201]
[1769548624435,0.11395287,89390.0,89372.0,0.00999999]
[1769548624644,0.10330838,89389.0,89377.0,0.011201]
[1769548625138,0.00012836,89388.0,89377.0,0.011201]
[1769548625347,0.00271674,89388.0,89380.0,0.011201]
[1769548626834,0.00271674,89388.0,89372.0,0.00999999]
[1769548626835,0.00271674,89388.0,89373.0,0.011201]
[1769548627033,0.00271674,89388.0,89372.0,0.00999999]
[1769548627245,0.29484,89387.0,89376.0,0.011201]
[1769548627444,0.29484,89387.0,89378.0,0.011201]
[1769548628246,0.10076,89388.0,89382.0,0.0112]
[1769548628442,0.39564,89390.0,89382.0,0.0112]
[1769548628642,0.39305414,89390.0,89382.0,0.0112]
[1769548628837,0.29488,89392.0,89384.0,0.0112]
[1769548629044,0.10076,89391.0,89384.0,0.0112]
[1769548629241,0.10076,89391.0,89381.0,0.0112]
[1769548629636,0.10334838,89391.0,89378.0,0.02134986]
[1769548629846,0.10334838,89391.0,89377.0,0.011201]
[1769548630740,0.10334838,89391.0,89373.0,0.01012076]
[1769548631152,0.10334838,89391.0,89379.0,0.011201]
[1769548631833,0.10334838,89391.0,89377.0,0.01012076]
[1769548632032,0.10334838,89391.0,89370.0,0.11395287]
[1769548632033,0.10334838,89391.0,89368.0,9.1e-07]
[1769548632238,0.10334838,89391.0,89376.0,0.011201]
[1769548632439,0.10076,89391.0,89374.0,0.0101401]
[1769548632754,0.011194,89434.0,89370.0,0.11395287]
[1769548632755,0.011192,89446.0,89399.0,0.0101401]
[1769548633052,0.39826838,89445.0,89412.0,0.0101401]
[1769548633244,0.39826838,89445.0,89421.0,0.0101401]
[1769548633646,0.39826838,89445.0,89420.0,0.11395287]
[1769548633844,0.00559081,89433.0,89422.0,0.011195]
[1769548634344,0.00258838,89432.0,89418.0,0.011196]
[1769548635243,0.00258838,89432.0,89414.0,0.0101401]
[1769548635444,0.00258838,89432.0,89419.0,0.011196]
[1769548636445,0.00258838,89432.0,89415.0,0.011196]
[1769548636653,0.00258838,89432.0,89414.0,0.0101401]
[1769548637053,0.00258838,89432.0,89418.0,0.011196]
[1769548637959,0.00782713,89433.0,89421.0,0.011195]
[1769548638455,0.00782713,89433.0,89418.0,0.0099663]
[1769548638652,0.00782713,89433.0,89418.0,3e-07]
[1769548638953,0.00782713,89433.0,89400.0,0.14249111]
[1769548639255,0.39822838,89432.0,89422.0,0.011195]
[1769548640354,0.39822838,89432.0,89420.0,0.011195]
[1769548640550,0.4076765,89432.0,89410.0,0.10076]
[1769548640745,0.00944812,89431.0,89416.0,0.011196]
[1769548640946,0.00258838,89430.0,89416.0,0.011196]
[1769548641146,0.00258838,89430.0,89412.0,0.00982636]
[1769548641556,0.00258838,89430.0,89413.0,0.011196]
[1769548641757,0.00258838,89430.0,89423.0,0.011195]
[1769548641957,0.39564,89432.0,89423.0,0.011195]
[1769548642845,0.39822838,89432.0,89423.0,0.011195]
[1769548643160,0.39822838,89432.0,89420.0,0.011195]
[1769548644050,0.39822838,89432.0,89414.0,0.00982636]
[1769548645949,0.39822838,89432.0,89415.0,0.00903859]
[1769548646149,0.0091763,89431.0,89419.0,0.011196]
[1769548646349,0.00258838,89430.0,89419.0,0.011196]
[1769548648751,0.0091763,89429.0,89410.0,0.10076]
[1769548649061,0.00258838,89428.0,89411.0,0.00903859]
[1769548649459,0.0091763,89427.0,89411.0,0.00903859]
[1769548649756,0.0091763,89427.0,89410.0,0.10076]
[1769548649757,0.0091763,89420.0,89403.0,0.011198]
[1769548649950,0.0091763,89418.0,89396.0,0.00903859]
[1769548650150,0.0091763,89416.0,89396.0,0.00903859]
[1769548650363,0.00258838,89415.0,89404.0,0.011198]
[1769548650859,0.00258838,89415.0,89406.0,0.011197]
[1769548652461,0.00258838,89415.0,89403.0,0.011198]
[1769548652654,0.0091763,89414.0,89403.0,0.011198]
[1769548652964,0.00258838,89413.0,89395.0,0.00903859]
[1769548653559,0.0091763,89412.0,89388.0,0.00903859]
[1769548653756,0.0091763,89410.0,89400.0,0.011198]
[1769548653957,0.0091763,89408.0,89400.0,0.011198]
[1769548654157,0.00258838,89407.0,89400.0,0.011198]
[1769548654560,0.00258838,89407.0,89403.0,0.011198]
[1769548654758,0.29488,89411.0,89405.0,0.011197]
[1769548656060,0.29746838,89411.0,89402.0,0.011198]
[1769548656261,0.29746838,89411.0,89404.0,0.011198]
[1769548656564,0.30664468,89411.0,89401.0,0.011198]
[1769548657066,0.29488,89412.0,89401.0,0.00903859]
[1769548657259,0.10076,89419.0,89413.0,0.011196]
[1769548657460,0.00258838,89418.0,89410.0,0.011197]
[1769548658370,0.00258838,89418.0,89407.0,0.00903859]
[1769548658963,0.00258838,89418.0,89410.0,0.011197]
[1769548659668,0.00258838,89418.0,89407.0,0.02023559]
[1769548660179,0.00258838,89418.0,89409.0,0.011197]
[1769548660375,0.0091763,89417.0,89403.0,0.011198]
[1769548660677,0.0091763,89415.0,89403.0,0.011198]
[1769548660880,0.00258838,89414.0,89400.0,0.00903859]
[1769548661081,0.01176468,89414.0,89400.0,0.00903859]
[1769548662381,0.01176468,89414.0,89403.0,0.011198]
[1769548662578,0.0091763,89413.0,89400.0,0.011198]
[1769548662780,0.0091763,89411.0,89396.0,0.10076]
[1769548662975,0.00258838,89412.0,89405.0,0.011197]
[1769548663179,0.0091763,89417.0,89400.0,0.00903859]
[1769548663381,0.00258838,89416.0,89400.0,0.00903859]
[1769548663878,0.00258838,89416.0,89401.0,0.011198]
[1769548663879,0.0091763,89415.0,89401.0,0.011198]
[1769548664081,0.00258838,89414.0,89401.0,0.011198]
[1769548664389,0.0091763,89413.0,89397.0,0.011198]
[1769548664586,0.00258838,89412.0,89396.0,0.10076]
[1769548664796,0.00258838,89412.0,89396.0,0.10979859]
[1769548665086,0.00258838,89412.0,89396.0,0.12099759]
[1769548665285,0.00258838,89412.0,89400.0,0.011198]
[1769548665489,0.00258838,89412.0,89402.0,0.011198]
[1769548665990,0.00258838,89412.0,89401.0,0.00903859]
[1769548666177,0.01176468,89412.0,89400.0,0.011198]
[1769548666383,0.0091763,89411.0,89397.0,0.011198]
[1769548666687,0.10076,89419.0,89398.0,0.011198]
[1769548666688,0.0091763,89409.0,89398.0,0.011198]
[1769548666884,0.00258838,89408.0,89395.0,0.011199]
[1769548667485,0.0091763,89407.0,89388.0,0.00903859]
[1769548667684,0.0091763,89403.0,89388.0,0.0112]
[1769548667985,0.29488,89409.0,89383.0,0.10076]
[1769548667986,0.0091763,89401.0,89384.0,0.00903859]
[1769548668296,0.00258838,89400.0,89391.0,0.02023759]
[1769548669390,0.00258838,89400.0,89391.0,0.00903859]
[1769548669585,0.00258838,89400.0,89388.0,0.011199]
[1769548670388,0.0091763,89399.0,89377.0,0.00903859]
[1769548670594,0.0091763,89397.0,89388.0,0.0112]
[1769548670899,0.00258838,89396.0,89385.0,0.0112]
[1769548671979,0.00258838,89396.0,89387.0,0.0112]
[1769548673194,0.0091763,89395.0,89382.0,0.0112]
[1769548673391,0.00258838,89394.0,89384.0,0.0112]
[1769548673690,0.00258838,89394.0,89381.0,0.02092892]
[1769548673887,0.00081322,89392.0,89370.0,0.00972892]
[1769548674087,0.00081322,89388.0,89371.0,0.011202]
[1769548674292,0.00081322,89386.0,89371.0,0.011202]
[1769548674492,0.00258838,89385.0,89371.0,0.011202]
[1769548675109,0.00258838,89385.0,89368.0,0.01120291]
[1769548675110,0.00081322,89384.0,89368.0,0.01120291]
[1769548675395,0.00081322,89382.0,89368.0,0.01120291]
[1769548675693,0.0034016,89381.0,89368.0,0.01120291]
[1769548676097,0.0034016,89381.0,89370.0,0.011202]
[1769548676591,0.0034016,89381.0,89368.0,9.1e-07]
[1769548676592,0.00077458,89379.0,89368.0,9.1e-07]
[1769548676797,0.00077458,89376.0,89368.0,9.1e-07]
[1769548677000,0.00258838,89375.0,89368.0,9.1e-07]
[1769548677584,0.00077458,89374.0,89354.0,0.00999999]
[1769548677787,0.00258838,89373.0,89354.0,0.00999999]
[1769548677988,0.00258838,89373.0,89355.0,0.01007149]
[1769548678186,0.00258838,89373.0,89359.0,0.011203]
[1769548679288,0.00258838,89373.0,89355.0,0.01007149]
[1769548679884,0.00258838,89373.0,89359.0,0.011203]
[1769548680093,0.00258838,89373.0,89356.0,0.011204]
[1769548680400,0.00258838,89373.0,89358.0,0.011203]
[1769548681203,0.00258838,89373.0,89355.0,0.01007149]
[1769548681498,0.00258838,89373.0,89348.0,0.02231538]
[1769548681499,0.1008,89377.0,89372.0,0.01078169]
[1769548681690,0.00258838,89376.0,89353.0,0.00783414]
[1769548681889,0.00258838,89376.0,89358.0,0.011203]
[1769548682488,0.00258838,89376.0,89361.0,0.01095847]
[1769548683093,0.00258838,89376.0,89357.0,0.011203]
[1769548684301,0.00258838,89376.0,89355.0,0.01095847]
[1769548684602,0.011196,89418.0,89370.0,0.01103112]
[1769548684894,0.00258838,89389.0,89372.0,0.01103112]
[1769548685088,0.00258838,89389.0,89373.0,0.011201]
[1769548685293,0.3958,89388.0,89373.0,0.011201]
[1769548685493,0.00258838,89387.0,89373.0,0.011201]
[1769548685893,0.3958,89388.0,89376.0,0.0222255]
[1769548686094,0.3958,89388.0,89379.0,0.0110245]
[1769548686401,0.39838838,89388.0,89367.0,0.0110245]
[1769548686696,0.3958,89388.0,89377.0,0.0222255]
[1769548686902,0.3958,89388.0,89378.0,0.0110245]
[1769548687694,0.39838838,89388.0,89378.0,0.0110245]
[1769548687902,0.39838838,89388.0,89374.0,0.011201]
[1769548688405,0.3958,89388.0,89379.0,0.01101378]
[1769548688798,0.1008,89397.0,89385.0,0.0112]
[1769548689003,0.00258838,89396.0,89383.0,0.00968651]
[1769548689503,0.00258838,89396.0,89382.0,0.0112]
[1769548689700,0.00258838,89396.0,89379.0,0.011201]
[1769548690502,0.00258838,89396.0,89385.0,0.0112]
[1769548691498,0.00258838,89396.0,89387.0,0.0112]
[1769548692507,0.295,89405.0,89394.0,0.02088551]
[1769548692709,0.0008632,89404.0,89394.0,0.00968651]
[1769548693605,0.0008632,89404.0,89394.0,0.01227451]
[1769548694509,0.01030525,89404.0,89389.0,0.011199]
[1769548694702,0.01030525,89404.0,89389.0,0.013787]
[1769548694902,0.01030525,89404.0,89391.0,0.011199]
[1769548695108,0.01030525,89404.0,89391.0,0.013787]
[1769548695308,0.01030525,89404.0,89391.0,0.002588]
[1769548696510,0.02150325,89404.0,89391.0,0.002588]
[1769548698106,0.02150325,89404.0,89391.0,0.013787]
[1769548699004,0.02150325,89404.0,89391.0,0.002588]
[1769548699413,0.02150325,89404.0,89378.0,0.011201]
[1769548699414,0.00944205,89401.0,89382.0,0.00968651]
[1769548699711,0.00944205,89394.0,89382.0,0.002588]
[1769548699901,0.0008632,89393.0,89382.0,0.002588]
[1769548700711,0.0008632,89393.0,89381.0,0.0112]
[1769548701708,0.0120622,89393.0,89379.0,0.112001]
[1769548702011,0.0120622,89393.0,89381.0,0.0112]
[1769548702600,0.0008632,89393.0,89381.0,0.002588]
[1769548702804,0.01030525,89393.0,89381.0,0.002588]
[1769548703205,0.01030525,89393.0,89373.0,0.011201]
[1769548703206,0.00926311,89390.0,89373.0,0.011201]
[1769548703407,0.00926311,89379.0,89362.0,0.011203]
[1769548703601,0.1008,89393.0,89356.0,0.1008]
[1769548703602,0.0008632,89378.0,89364.0,0.00917769]
[1769548703809,0.0008632,89378.0,89356.0,0.1008]
[1769548703810,0.0008632,89378.0,89366.0,0.00917769]
[1769548704102,0.0008632,89378.0,89367.0,0.01176569]
[1769548704303,0.0008632,89378.0,89367.0,0.002588]
[1769548704511,0.0008632,89378.0,89367.0,0.01250043]
[1769548704717,0.0120642,89378.0,89368.0,0.00991243]
[1769548705014,0.0120642,89378.0,89369.0,0.002588]
[1769548705311,0.1008,89382.0,89369.0,0.002588]
[1769548705621,0.0008632,89381.0,89370.0,0.00991243]
[1769548705808,0.0008632,89381.0,89371.0,0.01250043]
[1769548706415,0.0008632,89381.0,89372.0,0.00991243]
[1769548706614,0.0008632,89381.0,89373.0,0.002588]
[1769548713118,0.0008632,89381.0,89372.0,0.00991243]
[1769548713418,0.0008632,89381.0,89370.0,0.011202]
[1769548714618,0.0008632,89381.0,89367.0,0.02111443]
[1769548714814,0.0008632,89381.0,89369.0,0.00991243]
[1769548715021,0.0008632,89381.0,89370.0,0.002588]
[1769548715721,0.0008632,89381.0,89370.0,0.01250043]
[1769548716122,0.0008632,89381.0,89371.0,0.00991243]
[1769548716334,0.0008632,89381.0,89371.0,0.01250043]
[1769548716518,0.011196,89414.0,89376.0,0.00991243]
[1769548716725,0.011199,89392.0,89378.0,0.00991243]
[1769548716927,0.0008632,89391.0,89380.0,0.00991243]
[1769548717130,0.0098878,89391.0,89381.0,0.002588]
[1769548717420,0.011199,89390.0,89381.0,0.002588]
[1769548717625,0.0008632,89389.0,89381.0,0.002588]
[1769548718624,0.0112,89388.0,89378.0,0.00991243]
[1769548718816,0.0112,89386.0,89373.0,0.00991243]
[1769548719016,0.0008632,89385.0,89374.0,0.002588]
[1769548719525,0.0008632,89385.0,89374.0,0.01250043]
[1769548721227,0.0008632,89385.0,89375.0,0.011201]
[1769548721424,0.0008632,89385.0,89375.0,0.013789]
[1769548721620,0.0120632,89385.0,89374.0,0.00991243]
[1769548721827,0.0202246,89383.0,89369.0,0.11071243]
[1769548722020,0.0008632,89382.0,89369.0,0.01250043]
[1769548722421,0.0008632,89382.0,89370.0,0.00991243]
[1769548722617,0.0008632,89382.0,89369.0,0.002588]
[1769548722618,0.21492326,89390.0,89372.0,0.00991243]
[1769548722926,0.21492326,89390.0,89378.0,0.00991243]
[1769548722927,0.0112,89386.0,89378.0,0.00991243]
[1769548723128,0.0008632,89386.0,89378.0,0.00991243]
[1769548723323,0.0112,89383.0,89378.0,0.00987243]
[1769548723523,0.0120632,89382.0,89373.0,0.002588]
[1769548724022,0.0112,89381.0,89373.0,0.002588]
[1769548725728,0.0112,89381.0,89374.0,0.00991243]
[1769548726021,0.011201,89379.0,89374.0,0.01250043]
[1769548726824,3.1e-07,89379.0,89374.0,0.01250043]
[1769548727026,3.1e-07,89379.0,89375.0,0.00991243]
[1769548727226,3.1e-07,89379.0,89378.0,0.002588]
[1769548728530,0.00258869,89379.0,89368.0,0.00991243]
[1769548728929,0.01378969,89379.0,89368.0,0.00991243]
[1769548729131,0.011201,89377.0,89368.0,0.00991243]
[1769548729332,0.00258838,89376.0,89364.0,0.00991243]
[1769548729734,0.00258838,89376.0,89368.0,0.00991243]
[1769548731630,0.0090246,89389.0,89368.0,0.00991243]
[1769548731836,0.0090246,89379.0,89359.0,0.011203]
[1769548732137,0.011201,89374.0,89360.0,0.00991243]
[1769548732333,0.00258838,89373.0,89360.0,0.00991243]
[1769548732640,0.00258838,89373.0,89353.0,0.00783414]
[1769548732641,0.0090246,89369.0,89356.0,0.00991243]
[1769548732821,0.01161298,89368.0,89354.0,0.00991243]
[1769548733023,0.011202,89365.0,89354.0,0.00991243]
[1769548733228,0.11412326,89370.0,89354.0,0.00991243]
[1769548733229,0.00258838,89364.0,89354.0,0.00991243]
[1769548733631,0.11412326,89370.0,89354.0,0.00991243]
[1769548733830,0.00258838,89369.0,89354.0,0.00991243]
[1769548734034,0.00258838,89369.0,89359.0,0.00991243]
[1769548734230,0.112001,89375.0,89359.0,0.00991243]
[1769548734426,0.011201,89378.0,89359.0,0.00991243]
[1769548734628,0.1008,89377.0,89361.0,0.00953994]
[1769548734828,0.09338838,89377.0,89365.0,0.00140009]
[1769548736143,0.09338838,89377.0,89367.0,0.00149668]
[1769548736332,0.1008,89379.0,89372.0,0.00149668]
[1769548736532,0.09930332,89379.0,89372.0,0.00149668]
[1769548737534,0.1018917,89379.0,89372.0,0.00149668]
[1769548738338,0.1018917,89379.0,89353.0,0.10863414]
[1769548738339,0.011202,89369.0,89353.0,0.10863414]
[1769548738541,0.00258838,89368.0,89353.0,0.10863414]
[1769548738747,0.00258838,89368.0,89353.0,0.11983814]
[1769548738937,0.00258838,89368.0,89355.0,0.011204]
[1769548739441,0.00258838,89368.0,89353.0,0.10863414]
[1769548740433,0.00258838,89368.0,89359.0,0.011203]
[1769548741742,0.01003647,89376.0,89353.0,0.10863414]
[1769548742049,0.10338838,89375.0,89364.0,0.011202]
[1769548742341,0.10338838,89375.0,89361.0,0.011203]
[1769548742646,0.10338838,89375.0,89353.0,0.10863414]
[1769548742647,0.10338838,89375.0,89360.0,0.011203]
[1769548743032,0.10338838,89375.0,89357.0,0.011203]
[1769548743033,0.11347588,89375.0,89357.0,0.011203]
[1769548743234,0.0100875,89355.0,89318.0,0.011208]
[1769548743437,0.10338838,89354.0,89340.0,0.011206]
[1769548743943,0.1008,89354.0,89334.0,0.01100181]
[1769548744144,0.00258838,89354.0,89330.0,0.21492326]
[1769548744343,0.00011637,89353.0,89332.0,0.011207]
[1769548744543,0.00258838,89352.0,89332.0,0.011207]
[1769548744748,0.00011637,89353.0,89333.0,0.011206]
[1769548744937,0.00270475,89353.0,89333.0,0.011206]
[1769548746141,0.01025055,89368.0,89340.0,0.11412326]
[1769548746336,0.00258838,89363.0,89340.0,0.11412326]
[1769548746536,0.00258838,89363.0,89349.0,0.011204]
[1769548747343,0.00258838,89363.0,89352.0,0.011204]
[1769548747641,0.00258838,89363.0,89349.0,0.011204]
[1769548748138,0.00258838,89363.0,89351.0,0.011204]
[1769548748539,0.11108691,89367.0,89351.0,0.011204]
[1769548748742,0.00258838,89366.0,89351.0,0.011204]
[1769548749347,0.01287529,89366.0,89343.0,0.1008]
[1769548749648,0.01028691,89365.0,89343.0,0.1008]
[1769548749834,0.11412326,89360.0,89343.0,0.1008]
[1769548750035,0.00258838,89359.0,89343.0,0.1008]
[1769548750443,0.00258838,89359.0,89346.0,0.011205]
[1769548750946,0.00258838,89359.0,89348.0,0.011205]
[1769548751646,0.10084,89367.0,89352.0,0.011204]
[1769548751947,0.01297469,89365.0,89352.0,0.011204]
[1769548752246,0.00258838,89365.0,89352.0,0.011204]
[1769548752433,0.00258838,89364.0,89343.0,0.1008]
[1769548752638,0.00258838,89364.0,89352.0,0.011204]
[1769548752842,0.01297469,89364.0,89352.0,0.011204]
[1769548754034,0.10084,89367.0,89350.0,0.11412326]
[1769548754245,0.10084,89371.0,89355.0,0.011204]
[1769548754454,0.10084,89371.0,89344.0,0.011205]
[1769548754455,0.01038871,89364.0,89353.0,0.011204]
[1769548754651,0.01297709,89364.0,89348.0,0.10084]
[1769548754948,0.11412326,89360.0,89348.0,0.112045]
[1769548755246,0.01297709,89359.0,89320.0,0.011208]
[1769548755442,0.11412326,89350.0,89331.0,0.39592]
[1769548755644,0.00258838,89349.0,89336.0,0.011206]
[1769548755946,0.00258838,89349.0,89320.0,0.11412326]
[1769548756144,0.11412326,89330.0,89320.0,0.011208]
[1769548756353,0.11671164,89330.0,89319.0,0.011208]
[1769548756658,0.00258838,89330.0,89319.0,0.011208]
[1769548757151,0.10084,89336.0,89320.0,0.011208]
[1769548757361,0.00258838,89335.0,89316.0,0.0359669]
[1769548757556,0.10084,89339.0,89320.0,0.11412326]
[1769548757860,0.10342838,89339.0,89329.0,0.011207]
[1769548758061,0.10342838,89339.0,89331.0,0.011207]
[1769548758062,0.10084,89339.0,89331.0,0.011207]
[1769548758364,0.10084,89342.0,89333.0,0.011206]
[1769548758567,0.10084,89342.0,89330.0,0.011207]
[1769548758866,0.00258838,89341.0,89330.0,0.011207]
[1769548759052,0.00258838,89341.0,89327.0,0.011207]
[1769548759453,0.11412326,89340.0,89327.0,0.011207]
[1769548759747,0.11671164,89340.0,89327.0,0.011207]
[1769548760568,0.12708734,89340.0,89327.0,0.011207]
[1769548760758,0.01296408,89340.0,89327.0,0.011207]
[1769548762162,0.00258838,89340.0,89329.0,0.011207]
[1769548762847,0.10084,89342.0,89318.0,0.10084]
[1769548762848,0.11412326,89350.0,89320.0,0.12533126]
[1769548763052,0.11671164,89350.0,89334.0,0.011206]
[1769548764059,0.12709053,89350.0,89334.0,0.011206]
[1769548765260,0.01037889,89356.0,89329.0,0.10084]
[1769548765458,0.00258838,89355.0,89343.0,0.011205]
[1769548766262,0.00258838,89355.0,89340.0,0.011205]
[1769548767062,0.00258838,89355.0,89334.0,0.011206]
[1769548767261,0.00258838,89355.0,89345.0,0.011205]
[1769548767466,0.00258838,89355.0,89333.0,0.011206]
[1769548767765,0.01029676,89354.0,89339.0,0.011206]
[1769548767965,0.00258838,89353.0,89339.0,0.011206]
[1769548768665,0.0102799,89349.0,89327.0,0.29512]
[1769548768979,0.0102799,89347.0,89329.0,0.011207]
[1769548769265,0.00258838,89346.0,89328.0,0.10084]
[1769548769467,0.00258838,89346.0,89335.0,0.011206]
[1769548770058,0.00258838,89346.0,89332.0,0.011207]
[1769548770258,0.01290326,89346.0,89332.0,0.011207]
[1769548771071,0.01031488,89345.0,89328.0,0.112047]
[1769548771264,0.00258838,89344.0,89328.0,0.112047]
[1769548771464,0.01031488,89339.0,89319.0,0.112048]
[1769548771769,0.01031488,89337.0,89319.0,0.112048]
[1769548771954,0.01292506,89336.0,89323.0,0.011208]
[1769548772357,0.01033668,89332.0,89316.0,0.0359669]
[1769548772556,0.01033668,89330.0,89316.0,0.0359669]
[1769548772756,0.00258838,89329.0,89316.0,0.0359669]
[1769548772963,0.00258838,89329.0,89317.0,0.011208]
[1769548773165,0.01033668,89339.0,89316.0,0.0359669]
[1769548773365,0.00258838,89338.0,89321.0,0.011208]
[1769548777264,0.01286296,89338.0,89318.0,0.112048]
[1769548778266,0.01027512,89337.0,89318.0,0.112048]
[1769548778467,0.00258838,89336.0,89318.0,0.112048]
[1769548778772,0.01027512,89335.0,89318.0,0.112048]
[1769548778972,0.00258838,89334.0,89318.0,0.112048]
[1769548780066,0.0128633,89334.0,89318.0,0.112048]
[1769548780270,0.11412326,89330.0,89318.0,0.011208]
[1769548780466,0.11671164,89330.0,89316.0,0.0359669]
[1769548780674,0.11671164,89330.0,89319.0,0.011208]
[1769548780980,0.12698656,89330.0,89316.0,0.0471759]
[1769548781161,0.01027492,89329.0,89318.0,0.011208]
[1769548781372,0.00258838,89328.0,89318.0,0.011208]
[1769548781566,0.0128633,89328.0,89316.0,0.0359669]
[1769548781872,0.00258838,89328.0,89319.0,0.011208]
[1769548782070,0.00258838,89328.0,89316.0,0.0359669]
[1769548782771,0.00258838,89328.0,89316.0,0.0471759]
[1769548782970,0.00258838,89328.0,89316.0,0.0359669]
[1769548783983,0.011208,89324.0,89305.0,0.02648006]
[1769548784167,0.00258838,89324.0,89310.0,0.00968037]
[1769548784481,0.00258838,89324.0,89305.0,0.02648006]
[1769548784482,0.10084,89329.0,89313.0,0.00968037]
[1769548784777,0.011206,89337.0,89320.0,0.00968037]
[1769548784975,0.00258838,89336.0,89320.0,0.00968037]
[1769548785176,0.011206,89335.0,89320.0,0.00968037]
[1769548785366,0.01379438,89335.0,89320.0,0.00968037]
[1769548785566,0.011206,89333.0,89320.0,0.00968037]
[1769548785766,0.01379438,89333.0,89320.0,0.00968037]
[1769548786977,0.00258838,89333.0,89320.0,0.00968037]
[1769548787186,0.02055031,89339.0,89321.0,0.00968037]
[1769548787367,0.00258838,89338.0,89321.0,0.00968037]
[1769548787572,0.011206,89337.0,89321.0,0.00968037]
[1769548787781,0.00258838,89336.0,89321.0,0.00968037]
[1769548789680,0.01193269,89336.0,89321.0,0.00968037]
[1769548789876,0.00934431,89331.0,89315.0,0.00968037]
[1769548790185,0.00258838,89330.0,89320.0,0.011208]
[1769548790374,0.011204,89352.0,89336.0,0.00968037]
[1769548790573,0.0008632,89350.0,89337.0,0.002588]
[1769548790881,0.0008632,89350.0,89338.0,0.011206]
[1769548791084,0.00934431,89355.0,89339.0,0.002588]
[1769548791269,0.13686891,89354.0,89340.0,0.00968037]
[1769548791474,0.10088,89359.0,89348.0,0.011204]
[1769548791673,0.13685753,89358.0,89349.0,0.002588]